bitfinex-derivatives/quotes_ETHF0:USTF0_20250410
["timestamp","ask_amount","ask_price","bid_price","bid_amount"]
[1744302027053,0.01007082,1490.3,1489.8,9.9888]
[1744302027254,0.01007082,1490.3,1490.2,1.34301]
[1744302027460,9.90445755,1490.7,1490.6,1.34265]
[1744302027655,3.22558756,1490.7,1490.6,4.55045]
[1744302027856,3.09465193,1490.9,1490.8,1.34247]
[1744302028164,14.85668632,1491.2,1491.1,1.3422]
[1744302028465,14.85668632,1491.2,1491.1,42.1422]
[1744302028952,14.85668632,1491.2,1491.1,40.8]
[1744302029262,16.19879632,1491.2,1491.1,40.8]
[1744302029571,1.34211,1491.2,1491.1,40.8]
[1744302029757,0.01007082,1491.3,1491.2,1.34211]
[1744302030064,1.35212082,1491.3,1491.1,49.17065]
[1744302030267,1.34211,1491.2,1491.1,47.8285]
[1744302030459,4.55993082,1491.3,1491.1,47.8285]
[1744302030763,3.21787082,1491.3,1491.1,47.8285]
[1744302031066,1.34211,1491.2,1491.1,47.8285]
[1744302031361,0.01007082,1491.3,1491.1,47.8285]
[1744302031568,0.01007082,1491.3,1491.2,1.34211]
[1744302031760,0.01007082,1491.3,1491.2,8.42761]
[1744302032561,1.35209082,1491.3,1491.2,7.0855]
[1744302032757,8.21787082,1491.3,1491.0,0.01007082]
[1744302033068,4.55,1491.1,1491.0,0.01007082]
[1744302033267,3.35617,1490.9,1490.4,47.8855]
[1744302033567,1.34266,1490.6,1490.4,49.22826]
[1744302033762,1.34283,1490.4,1490.1,3.2078]
[1744302033960,7.298,1490.5,1490.1,7.0258]
[1744302034162,1.34296,1490.3,1490.1,8.36884]
[1744302034368,1.35299082,1490.4,1490.2,1.34301]
[1744302034664,0.01007082,1490.4,1490.3,1.34292]
[1744302034864,1.35290082,1490.4,1490.3,1.34292]
[1744302035063,1.35290082,1490.4,1490.1,7.0258]
[1744302035064,0.01007082,1490.4,1490.2,1.34296]
[1744302035267,3.36732082,1490.4,1490.0,1.34319]
[1744302035470,3.2078,1490.1,1489.7,13.60567084]
[1744302035763,3.2078,1490.1,1489.8,1.34334]
[1744302036072,1.3433,1489.9,1489.7,17.42367084]
[1744302036364,1.34326,1490.0,1489.8,1.34337]
[1744302036669,3.2078,1490.3,1489.7,23.99011084]
[1744302036867,7.2633,1490.2,1489.7,23.99011084]
[1744302037068,3.21787082,1490.4,1489.8,3.35825]
[1744302037267,3.21787082,1490.4,1489.9,10.5682]
[1744302037268,0.01007082,1490.4,1489.9,10.5682]
[1744302037467,1.34296,1490.3,1490.1,1.34304]
[1744302037666,10.4711,1490.3,1490.2,1.34301]
[1744302038160,0.01007082,1490.4,1490.3,1.34292]
[1744302038964,0.01007082,1490.4,1490.2,7.3604]
[1744302039167,0.01007082,1490.4,1490.3,1.34292]
[1744302039564,1e-08,1490.4,1490.3,9.55072]
[1744302040163,1e-08,1490.4,1490.3,4.55072]
[1744302040563,1e-08,1490.4,1490.3,9.55072]
[1744302040858,1e-08,1490.4,1490.3,4.55072]
[1744302041063,1e-08,1490.4,1490.3,9.55072]
[1744302041869,1e-08,1490.4,1490.3,4.55072]
[1744302042268,1e-08,1490.4,1490.3,9.55072]
[1744302042669,1e-08,1490.4,1490.3,10.22192]
[1744302043271,1e-08,1490.4,1490.3,9.55072]
[1744302043574,1e-08,1490.4,1490.3,50.35072]
[1744302043775,1.34197,1491.4,1491.3,1.34202]
[1744302044270,1.34178,1491.6,1491.5,1.34184]
[1744302044570,3.35438,1491.6,1491.3,7.4272]
[1744302044766,1.34196,1491.4,1491.3,1.34201]
[1744302044968,13.90745,1491.5,1491.3,0.01007082]
[1744302045171,1.34193,1491.4,1491.3,0.01007082]
[1744302045373,8.68693,1491.4,1491.3,0.01007082]
[1744302045574,13.68693,1491.4,1491.3,0.01007082]
[1744302046072,14.01464218,1491.4,1491.3,0.01007082]
[1744302046266,13.68693,1491.4,1491.3,0.01007082]
[1744302046667,1.35189082,1491.6,1491.4,1.34184]
[1744302046867,1.35189082,1491.6,1491.5,1.34184]
[1744302046868,0.01007082,1491.6,1491.5,1.34184]
[1744302047666,0.01007082,1491.6,1491.5,4.54964]
[1744302048571,0.01007082,1491.6,1491.5,9.54964]
[1744302048772,8.2e-07,1491.6,1491.5,9.54964]
[1744302048973,8.2e-07,1491.6,1491.5,50.34964]
[1744302049169,1.3413,1492.1,1491.7,3.35394]
[1744302049371,8.23668,1492.2,1491.8,9.9744]
[1744302049575,8.23668,1492.2,1491.9,6.7666]
[1744302049770,6.8954,1492.2,1491.9,6.7666]
[1744302050073,8.23669,1492.2,1492.0,1.34136]
[1744302050263,0.01007082,1492.2,1492.1,1.3413]
[1744302050472,0.01007082,1492.2,1491.9,6.7666]
[1744302050675,0.01007082,1492.2,1492.1,1.3413]
[1744302050972,0.01007082,1492.2,1492.1,8.1079]
[1744302051168,0.01007082,1492.2,1492.1,6.7666]
[1744302051376,0.01007082,1492.2,1492.1,8.1079]
[1744302051572,0.01007082,1492.2,1492.1,6.7666]
[1744302051774,0.01007082,1492.2,1491.3,3.21787082]
[1744302051775,1.34175,1491.6,1491.3,3.21787082]
[1744302051972,3.35382,1491.9,1491.4,7.0719]
[1744302052176,3.2078,1491.6,1491.3,3.21787082]
[1744302052474,1.34193,1491.4,1491.3,3.21787082]
[1744302052678,1.34193,1491.4,1491.3,0.01007082]
[1744302053669,6.9564,1491.5,1491.3,0.01007082]
[1744302053670,1.34192,1491.5,1491.3,0.01007082]
[1744302053973,1.34193,1491.4,1491.3,0.01007082]
[1744302054166,1.34192,1491.5,1491.4,1.34193]
[1744302054366,1.34193,1491.4,1491.3,0.01007082]
[1744302054571,8.29833,1491.4,1491.3,0.01007082]
[1744302054771,13.29833,1491.4,1491.3,0.01007082]
[1744302056281,13.62588957,1491.4,1491.3,0.01007082]
[1744302056678,1.34238,1490.9,1490.8,10.39787084]
[1744302056879,1.34265,1490.6,1490.4,25.9860382]
[1744302057181,3.2078,1490.6,1490.4,25.9860382]
[1744302057572,6.2335,1490.8,1490.7,1.34256]
[1744302057782,4.55,1491.2,1491.0,1.34226]
[1744302057976,0.01007082,1490.9,1490.8,7.36627]
[1744302058379,0.01007082,1490.9,1490.8,15.57407]
[1744302058684,0.01007082,1490.9,1490.8,12.36627]
[1744302059477,1.35245082,1490.9,1490.8,6.0238]
[1744302059879,0.01007082,1490.9,1490.8,7.36627]
[1744302060076,0.01007082,1490.9,1490.8,6.0238]
[1744302060284,1.34256,1490.7,1490.6,0.01007082]
[1744302060688,6.4652,1490.8,1490.6,0.01007082]
[1744302061285,4.55036,1490.7,1490.6,0.01007082]
[1744302061887,9.55036,1490.7,1490.6,8.2e-07]
[1744302062978,9.87728827,1490.7,1490.6,8.2e-07]
[1744302063182,9.55036,1490.7,1490.6,8.2e-07]
[1744302063786,9.87718814,1490.7,1490.6,8.2e-07]
[1744302064082,26.08281814,1490.7,1489.8,3.2078]
[1744302064281,3.2078,1490.5,1490.0,3.2078]
[1744302064491,6.56515,1490.3,1490.0,40.8]
[1744302064680,6.56573,1490.1,1489.6,7.61152]
[1744302064884,4.5512,1489.8,1489.6,6.268]
[1744302065083,1.34346,1489.7,1489.5,1.3436]
[1744302065278,1.34355,1489.6,1489.4,21.65448]
[1744302065483,6.3153,1489.7,1489.5,1.34361]
[1744302065688,6.3153,1489.7,1489.6,1.34355]
[1744302065885,6.3153,1489.7,1489.2,3.2078]
[1744302066085,0.01007082,1490.0,1489.8,1.34336]
[1744302066284,0.01007082,1490.0,1489.8,42.14336]
[1744302066285,1.34328,1489.9,1489.8,42.14336]
[1744302066584,0.01007082,1490.0,1489.9,1.34328]
[1744302066786,6.3153,1490.4,1490.3,1.34292]
[1744302067194,1.34298,1490.3,1490.1,5.9747]
[1744302067485,1.34298,1490.3,1490.0,1.34318]
[1744302067486,1.34312,1490.1,1490.0,1.34318]
[1744302067686,1.34319,1490.0,1489.9,5.9747]
[1744302067894,1.34328,1489.9,1489.8,40.8]
[1744302068088,6.4129,1489.9,1489.8,42.15344082]
[1744302068294,7.75618,1489.9,1489.8,40.81007082]
[1744302068496,6.4129,1489.9,1489.8,40.81007082]
[1744302068694,1.34328,1489.9,1489.8,40.81007082]
[1744302069189,4.55108,1489.9,1489.8,0.01007082]
[1744302069383,9.55108,1489.9,1489.8,1e-08]
[1744302069586,1.34328,1489.9,1489.8,1e-08]
[1744302069891,9.55108,1489.9,1489.8,1e-08]
[1744302070697,1.344,1489.1,1489.0,6.4186]
[1744302070992,4.5518,1489.1,1489.0,7.76269]
[1744302071190,1.344,1489.1,1489.0,7.76269]
[1744302071390,1.344,1489.1,1489.0,6.4186]
[1744302071588,3.36021,1489.1,1488.6,5.1662]
[1744302071790,3.36091,1488.7,1488.3,0.01364691]
[1744302071990,1.34527,1487.7,1487.6,25.9860382]
[1744302072190,1.34527,1487.7,1487.6,24.5999582]
[1744302072588,12.51677,1487.7,1487.6,22.4371782]
[1744302072789,1.34554,1487.4,1487.3,29.27209775]
[1744302072988,1.34581,1487.1,1487.0,40.97110886]
[1744302073186,4.55361,1487.1,1487.0,40.97110886]
[1744302073391,4.55361,1487.1,1487.0,28.85510176]
[1744302074194,9.55361,1487.1,1487.0,17.60082176]
[1744302074393,4.55361,1487.1,1487.0,15.78544176]
[1744302074594,9.55361,1487.1,1487.0,14.35692176]
[1744302074793,1.34581,1487.1,1487.0,14.35692176]
[1744302074994,4.55361,1487.1,1487.0,14.35692176]
[1744302075390,9.55361,1487.1,1487.0,1.01446176]
[1744302075596,1.3459,1487.0,1486.9,44.14774414]
[1744302075790,1.34608,1486.8,1486.7,31.22263299]
[1744302075990,3.36521,1486.8,1486.2,5.9497]
[1744302076199,3.2078,1486.5,1486.2,19.39209916]
[1744302076392,4.55417,1486.5,1486.3,13.44239916]
[1744302076594,4.55415,1486.5,1486.4,5.9497]
[1744302077009,1.34699,1485.8,1485.7,3.2078]
[1744302077199,3.2078,1484.3,1481.2,11.21996607]
[1744302077492,3.2078,1481.3,1480.3,3.2078]
[1744302077700,1.72029,1480.4,1480.0,3.2078]
[1744302077895,3.2078,1480.9,1480.1,26.45323769]
[1744302078095,3.2078,1482.0,1480.8,3.2078]
[1744302078288,3.2078,1481.3,1480.9,17.29573769]
[1744302078488,0.53279747,1482.0,1480.1,23.24543769]
[1744302078489,0.01011053,1480.6,1480.1,23.24543769]
[1744302078692,3.2078,1481.1,1480.1,17.29573769]
[1744302078890,3.2078,1480.4,1480.1,8.23867183]
[1744302079097,3.2078,1480.6,1480.2,14.08793769]
[1744302079292,3.2078,1480.6,1480.1,14.08793769]
[1744302079486,1.35148,1480.9,1480.1,14.08793769]
[1744302079797,10.819,1481.8,1479.5,40.8]
[1744302079798,19.42572205,1480.8,1479.5,40.8]
[1744302079995,19.42572205,1480.8,1477.8,12.241]
[1744302079996,3.2078,1479.6,1477.8,3.2078]
[1744302080296,3.2078,1479.8,1478.8,0.676]
[1744302080497,3.37844,1481.0,1479.4,40.8]
[1744302080795,3.2078,1480.1,1479.4,40.8]
[1744302080997,10.81380472,1480.9,1478.6,6.68695876]
[1744302081201,3.2078,1479.7,1478.7,9.9654]
[1744302081493,92.0517853,1479.5,1477.2,3.38708]
[1744302081699,51.2517853,1479.5,1478.1,3.2078]
[1744302081895,58.84463827,1480.4,1479.4,3.2078]
[1744302082096,3.37627,1482.0,1479.6,3.2078]
[1744302082300,3.2078,1481.8,1480.5,3.2078]
[1744302082492,3.2078,1481.3,1480.6,102.764]
[1744302082687,3.2078,1481.3,1480.7,102.764]
[1744302082893,3.2078,1480.8,1480.6,3.017]
[1744302083094,3.2078,1480.8,1480.2,1.35205]
[1744302083095,3.5387,1480.7,1479.7,9.9646]
[1744302083298,6.7465,1479.9,1479.7,9.9646]
[1744302083594,6.7465,1479.9,1479.0,0.5060169]
[1744302083595,3.2078,1479.3,1478.7,0.6768]
[1744302083796,3.2078,1479.5,1478.7,0.6768]
[1744302083991,3.2078,1479.5,1479.4,40.8]
[1744302084293,3.2078,1480.3,1479.4,143.564]
[1744302084491,0.01014713,1479.6,1479.5,0.676]
[1744302084694,15.51528673,1479.6,1479.0,3.2078]
[1744302084896,3.2078,1479.6,1478.9,0.6768]
[1744302085196,3.2078,1479.6,1478.9,1.3532]
[1744302085397,3.2078,1479.6,1479.0,9.52017384]
[1744302085706,3.2078,1480.8,1479.5,40.8]
[1744302086001,3.2078,1481.2,1480.4,3.2078]
[1744302086207,3.2078,1481.4,1480.5,103.5372]
[1744302086501,242.90070733,1482.1,1480.8,3.2078]
[1744302086502,3.2078,1481.6,1480.8,3.2078]
[1744302086691,15.51528673,1482.0,1481.2,3.2078]
[1744302086897,3.2078,1481.9,1481.3,102.862]
[1744302087104,206.10850733,1482.1,1481.7,1.3507]
[1744302087306,206.10850733,1482.1,1481.4,3.2078]
[1744302087500,141.02379406,1482.1,1481.8,16.56704515]
[1744302087702,6.7465,1481.9,1481.8,7.7096322]
[1744302087901,6.75664713,1481.9,1481.6,0.01014713]
[1744302088097,6.7465,1481.7,1481.6,0.01014713]
[1744302088501,3.5387,1481.0,1480.6,4.16714503]
[1744302088805,15.51528673,1481.6,1480.6,4.16714503]
[1744302088806,3.2078,1481.1,1480.7,0.13507125]
[1744302089010,3.2078,1481.4,1481.3,1.35108]
[1744302089199,3.2078,1481.4,1480.8,106.0918]
[1744302089410,3.2078,1481.7,1481.0,3.2078]
[1744302089604,6.7465,1481.5,1480.9,8.78671204]
[1744302089800,7.13e-06,1481.2,1481.1,10.13797204]
[1744302090103,7.13e-06,1481.2,1481.1,40.8]
[1744302090299,24.05398673,1481.2,1481.1,0.8]
[1744302090499,24.05398673,1481.2,1479.8,0.6752]
[1744302090500,3.2078,1481.0,1479.8,0.6752]
[1744302090704,3.2078,1481.1,1479.8,3.883]
[1744302090905,102.884,1482.7,1480.5,3.2078]
[1744302090906,3.2078,1481.3,1480.5,3.2078]
[1744302091103,3.2078,1481.7,1481.5,1.3509]
[1744302091306,3.2078,1481.9,1481.3,0.6752]
[1744302091506,21.88828673,1482.6,1481.6,40.8]
[1744302091507,3.3752,1482.4,1481.6,40.8]
[1744302091812,15.51528673,1482.5,1481.5,0.01014713]
[1744302091813,5.95664713,1481.7,1481.5,0.01014713]
[1744302092109,1.35081,1481.6,1481.5,0.01014713]
[1744302092309,9.5808,1481.6,1480.5,5.0703]
[1744302092505,2.7387,1481.4,1480.8,3.2078]
[1744302092711,0.01014713,1481.7,1481.0,3.2078]
[1744302092910,0.01014713,1481.7,1481.6,1.35081]
[1744302093208,3.2078,1481.9,1481.5,102.906]
[1744302093512,3.37391,1483.0,1482.3,1.35017]
[1744302093513,2.7387,1482.4,1482.3,1.35017]
[1744302093707,3.37252,1483.6,1482.1,3.2078]
[1744302093708,5.9465,1482.7,1482.1,3.2078]
[1744302093912,3.2078,1482.7,1482.6,1.34989]
[1744302094113,18.7230796,1482.7,1482.3,3.2078]
[1744302094507,0.01014713,1482.8,1482.5,0.01014713]
[1744302094711,3.21794713,1482.8,1482.5,3.21794713]
[1744302095013,3.21794713,1482.8,1482.6,6.2438]
[1744302095014,15.5152796,1482.7,1482.6,6.2438]
[1744302095317,2.7387,1482.6,1482.5,0.01014713]
[1744302095517,15.5152796,1482.7,1482.6,1.34989]
[1744302095822,7.13e-06,1482.8,1482.7,1.3498]
[1744302096014,7.13e-06,1482.8,1482.7,4.5568]
[1744302096208,7.13e-06,1482.8,1482.7,9.5568]
[1744302096404,7.13e-06,1482.8,1482.7,47.149]
[1744302096713,7.13e-06,1482.8,1482.7,47.8242]
[1744302096912,3.2078,1483.5,1482.7,55.16669886]
[1744302097110,2.7387,1483.0,1482.9,3.2078]
[1744302097308,2.7387,1483.4,1482.9,3.2078]
[1744302097508,3.2078,1484.3,1483.3,3.2078]
[1744302097717,18.7230796,1484.2,1483.8,1.34874]
[1744302097909,3.2078,1484.2,1483.9,5.9877]
[1744302098106,3.2078,1484.0,1483.9,0.01011258]
[1744302098311,0.01011258,1484.1,1483.9,0.01011258]
[1744302098611,18.7230796,1484.0,1483.9,0.01011258]
[1744302098806,3.2078,1484.0,1483.2,106.1118]
[1744302099011,15.50516702,1483.9,1483.3,5.9877]
[1744302099210,3.2078,1483.7,1483.3,5.9877]
[1744302099419,18.71296702,1483.8,1483.6,40.8]
[1744302099627,3.2078,1483.8,1482.9,0.6142]
[1744302099821,3.2078,1483.6,1483.4,1.3491]
[1744302100028,15.50516702,1484.0,1483.7,1.34889]
[1744302100222,3.2078,1483.9,1483.3,3.2078]
[1744302100422,3.2078,1483.7,1483.2,0.01011258]
[1744302100623,15.50516702,1483.8,1483.6,40.8]
[1744302101025,1.34911,1483.5,1483.2,3.21791258]
[1744302101230,18.71296702,1483.7,1483.2,0.01011258]
[1744302101531,3.2078,1483.3,1483.2,0.01011258]
[1744302101734,4.55706,1483.3,1483.2,1e-08]
[1744302101924,3.3736,1483.1,1482.5,1.3499]
[1744302102123,3.2078,1483.0,1482.6,40.8]
[1744302102334,1.3498,1482.7,1482.6,40.8]
[1744302102535,18.09892701,1482.7,1482.6,40.8]
[1744302102727,12.17520701,1482.7,1482.6,47.14989]
[1744302102927,3.2078,1483.7,1482.6,46.4752]
[1744302103132,3.2078,1483.7,1483.5,1.34901]
[1744302103329,0.01011258,1483.3,1483.0,6.58144]
[1744302103536,2.58e-06,1483.3,1483.2,4.55715]
[1744302103832,3.2078,1483.9,1483.2,3.2078]
[1744302104230,3.2078,1483.7,1483.5,1.34904]
[1744302104431,3.2078,1483.7,1483.2,4.5571]
[1744302104626,3.91025781,1483.8,1483.1,9.0324]
[1744302104828,0.70245781,1483.8,1483.3,6.58089]
[1744302105035,0.01011258,1483.6,1483.5,1.34907]
[1744302105328,2.58e-06,1483.6,1483.5,4.55687]
[1744302105635,2.58e-06,1483.6,1483.5,9.55687]
[1744302105835,0.68936106,1483.6,1483.4,5.8246]
[1744302106132,1.34917,1483.4,1483.3,0.01011258]
[1744302106337,2.03852848,1483.4,1483.3,0.01011258]
[1744302106832,1.34932,1483.3,1483.0,1.3495]
[1744302107137,3.2078,1483.1,1482.8,5.9295]
[1744302107332,5.24638848,1483.4,1483.1,1.34941]
[1744302107631,0.68935848,1483.3,1483.0,3.2078]
[1744302107837,3.89715848,1483.3,1483.1,1.34939]
[1744302108133,3.89715848,1483.3,1482.6,45.6513]
[1744302108134,3.2078,1483.3,1483.0,0.01011258]
[1744302108331,4.55724,1483.1,1483.0,0.01011258]
[1744302108733,6.1536,1483.2,1483.0,1.35964258]
[1744302108933,3.2078,1483.3,1483.0,1.34953]
[1744302108934,0.69257134,1483.1,1483.0,1.34953]
[1744302109329,0.69257134,1483.1,1483.0,6.34953]
[1744302109526,1.34e-06,1483.1,1483.0,6.34953]
[1744302109724,3.20780258,1483.6,1483.1,3.3736]
[1744302110227,3.20780258,1483.6,1483.4,1.34908]
[1744302110432,3.20780258,1483.6,1483.2,40.81011258]
[1744302111026,3.2078,1483.4,1483.2,40.81011258]
[1744302111430,2.58e-06,1483.6,1483.4,1.34912]
[1744302111629,2.58e-06,1483.6,1483.2,42.15944258]
[1744302111832,2.58e-06,1483.6,1483.2,40.81011258]
[1744302112339,3.2078,1483.5,1483.2,40.81011258]
[1744302112536,4.55706,1483.3,1483.2,40.81011258]
[1744302112731,1.34926,1483.3,1483.2,40.81011258]
[1744302112933,6.3374,1483.5,1483.2,40.81011258]
[1744302113140,3.20780258,1483.6,1483.5,1.34907]
[1744302113328,2.58e-06,1483.6,1483.5,1.34907]
[1744302113737,2.58e-06,1483.6,1483.5,6.34907]
[1744302114033,1.34906258,1483.6,1483.4,1.34909]
[1744302114234,4.55678258,1483.6,1483.5,40.8]
[1744302114435,5.04765719,1483.6,1483.5,40.8]
[1744302114940,5.04765719,1483.6,1483.5,42.14907]
[1744302115132,8.69867719,1483.6,1483.5,40.8]
[1744302115440,3.37315,1483.3,1482.6,3.37457]
[1744302115642,3.2078,1482.9,1482.8,1.34971]
[1744302115841,0.49361835,1482.9,1482.8,1.34971]
[1744302116036,8.35e-06,1482.9,1482.8,9.55751]
[1744302116338,3.2078,1483.3,1483.2,1.34927]
[1744302116544,3.2078,1483.3,1482.8,49.0078]
[1744302116545,3.75336871,1483.3,1482.8,44.17424]
[1744302116741,0.54556871,1483.2,1483.1,1.34942]
[1744302117041,0.54556871,1483.2,1483.1,1.34944]
[1744302117635,6.3098,1483.5,1483.4,1.34917]
[1744302117837,0.54572822,1483.5,1483.4,1.34917]
[1744302118039,2.58e-06,1483.6,1483.2,3.37333]
[1744302118233,2.58e-06,1483.6,1483.5,1.34907]
[1744302118432,0.54589045,1483.6,1483.5,40.8]
[1744302118638,6.89487045,1483.6,1483.5,42.14907]
[1744302118944,0.54589045,1483.6,1483.5,42.14907]
[1744302119143,2.58e-06,1483.6,1483.5,42.14907]
[1744302119838,4.55678258,1483.6,1483.5,40.8]
[1744302120044,10.10412121,1483.6,1483.5,40.8]
[1744302120635,10.10502999,1483.6,1483.5,40.8]
[1744302121133,1.34926,1483.3,1483.2,0.1019]
[1744302121344,3.75604741,1483.3,1482.6,3.37474]
[1744302121639,3.2078,1483.0,1482.7,1.34976]
[1744302121940,6.7459,1483.4,1482.1,0.6744]
[1744302121941,6.58216,1482.8,1482.2,3.37563]
[1744302122136,4.39570303,1482.7,1482.3,47.0352]
[1744302122342,0.55835999,1482.6,1482.4,1.35004]
[1744302122547,7.41e-06,1482.5,1482.4,1.35008]
[1744302122745,1e-08,1482.7,1482.6,1.34989]
[1744302123443,1.34989,1482.6,1482.3,40.81011258]
[1744302123637,1e-08,1482.7,1482.6,1.34989]
[1744302124036,1.35008,1482.4,1482.3,40.81011258]
[1744302124242,1.35088,1481.6,1481.4,1.35098]
[1744302124542,4.55779,1482.5,1481.5,8.86930947]
[1744302124733,3.2078,1482.7,1482.0,3.2078]
[1744302125043,3.2078,1482.9,1482.4,6.583]
[1744302125240,3.2078,1482.9,1482.6,1.34983]
[1744302125241,1.34971,1482.8,1482.6,1.34983]
[1744302125448,0.01011258,1482.8,1482.7,1.3498]
[1744302125848,2.58e-06,1482.8,1482.7,1.3498]
[1744302126051,9.62162132,1483.7,1483.6,1.34898]
[1744302126238,9.62162132,1483.7,1483.4,3.37292]
[1744302126439,9.62162132,1483.7,1483.6,1.34898]
[1744302126440,7.39947132,1483.7,1483.6,1.34898]
[1744302126640,7.39947132,1483.7,1483.6,42.14898]
[1744302127342,2.61334435,1483.7,1483.6,47.14898]
[1744302127542,11.80275345,1484.0,1483.7,1.34889]
[1744302127749,7.18163345,1484.6,1484.5,1.34817]
[1744302128043,7.56655066,1484.6,1484.2,5.77066115]
[1744302128234,7.56655066,1484.6,1484.0,3.2078]
[1744302128235,0.38491145,1484.5,1484.0,3.2078]
[1744302128441,3.2078,1484.2,1483.6,102.859]
[1744302128645,0.38491145,1484.1,1483.5,3.37269]
[1744302128846,1.34871,1483.9,1483.8,0.01011258]
[1744302129148,3.21791258,1484.0,1483.8,40.81011258]
[1744302129545,0.38442537,1483.9,1483.3,2.6966]
[1744302129842,3.2078,1483.5,1483.3,2.6966]
[1744302130043,3.2078,1483.9,1483.4,40.8]
[1744302130242,0.38516694,1483.8,1483.7,1.34889]
[1744302130442,0.01011258,1484.0,1483.9,1.34871]
[1744302130643,0.39532408,1484.0,1483.5,6.58032]
[1744302130948,0.39532408,1484.0,1483.9,1.34871]
[1744302130949,0.01011258,1484.0,1483.9,1.34871]
[1744302131649,2.58e-06,1484.0,1483.9,1.34871]
[1744302131846,2.58e-06,1484.0,1483.8,1.35884258]
[1744302132052,2.58e-06,1484.0,1483.9,1.34871]
[1744302132246,0.38487086,1484.0,1483.8,0.01011258]
[1744302132440,0.38487086,1484.0,1483.9,1.34871]
[1744302132441,2.58e-06,1484.0,1483.9,1.34871]
[1744302133150,2.58e-06,1484.0,1483.8,0.01011258]
[1744302133356,4.55646258,1484.0,1483.8,0.01011258]
[1744302133648,0.38482595,1483.9,1483.8,0.01011258]
[1744302133949,1.73353595,1483.9,1483.8,0.01011258]
[1744302134155,11.305466,1483.9,1483.8,0.01011258]
[1744302134545,12.654176,1483.9,1483.8,0.01011258]
[1744302135142,6.305466,1483.9,1483.8,0.01011258]
[1744302135344,2.58e-06,1484.0,1483.9,1.34871]
[1744302136255,2.58e-06,1484.0,1483.9,6.34871]
[1744302137253,9.4699,1484.8,1484.7,1.34798]
[1744302137449,3.59376957,1484.8,1484.7,1.34798]
[1744302137751,3.2078,1485.0,1484.6,3.3702]
[1744302137947,0.3856153,1484.9,1484.8,1.34789]
[1744302138154,0.38560825,1484.9,1484.3,3.2078]
[1744302138449,0.01011258,1485.0,1484.9,1.3478]
[1744302138654,0.39532677,1485.0,1484.9,1.3478]
[1744302138852,0.01011258,1485.0,1484.9,1.3478]
[1744302139051,5.39527225,1485.0,1484.9,40.8]
[1744302139248,11.65737225,1485.0,1484.7,0.01011258]
[1744302139452,1.34834,1484.4,1484.0,9.55003]
[1744302139654,3.2078,1484.4,1484.1,40.8]
[1744302139857,3.2078,1484.4,1483.4,6.74559]
[1744302139858,3.37133,1484.1,1483.3,3.37309]
[1744302140049,3.2078,1483.5,1483.4,1.34917]
[1744302140245,3.2078,1483.7,1483.6,1.34898]
[1744302141048,3.2078,1483.3,1482.4,15.67299545]
[1744302141246,3.2078,1482.7,1482.5,6.1785]
[1744302141450,3.2078,1483.0,1482.6,40.8]
[1744302141653,1.34947,1483.1,1482.8,1.34964]
[1744302141853,3.2078,1483.0,1482.9,1.34962]
[1744302142054,3.2078,1483.0,1482.8,1.34965]
[1744302142256,3.2078,1483.0,1482.7,6.1785]
[1744302142257,1.34963,1482.9,1482.7,10.46877]
[1744302142453,3.59170177,1482.8,1482.4,15.67299545]
[1744302142748,3.59170177,1482.8,1481.0,6.037]
[1744302142749,3.2078,1482.2,1481.0,6.037]
[1744302142953,0.38390177,1482.1,1481.3,6.5855]
[1744302143254,3.21791258,1481.8,1481.7,1.3507]
[1744302143452,3.21791258,1481.8,1481.7,1.35071]
[1744302143653,3.21791258,1481.8,1481.7,8.09551]
[1744302143847,3.21791258,1481.8,1481.4,6.037]
[1744302144043,3.21791258,1481.8,1481.5,6.7448]
[1744302144251,3.21791258,1481.8,1481.4,6.037]
[1744302144447,6.73701603,1481.7,1480.9,3.2078]
[1744302144657,1.35094,1481.5,1481.0,6.7448]
[1744302144952,3.2078,1481.3,1481.0,6.7448]
[1744302145150,3.2078,1481.3,1480.9,13.2078]
[1744302145151,3.2078,1481.3,1481.1,6.7448]
[1744302145449,3.2078,1481.3,1481.0,6.7448]
[1744302145651,4.55888,1481.3,1481.0,6.7448]
[1744302145853,9.54507,1481.7,1480.8,27.63305923]
[1744302145854,3.2078,1481.1,1480.8,27.63305923]
[1744302146054,1.35144,1480.9,1480.8,26.28157923]
[1744302146242,5.6756,1481.0,1480.8,26.28157923]
[1744302146447,3.2078,1481.1,1480.9,8.09618]
[1744302146645,0.01011258,1481.0,1480.9,8.09624]
[1744302146846,3.2078,1481.6,1480.9,19.9526]
[1744302147049,3.2078,1481.4,1481.0,6.7448]
[1744302147255,3.2078,1481.1,1480.9,1.35139]
[1744302147450,3.2078,1481.1,1480.8,26.28157923]
[1744302147652,4.55924,1480.9,1480.8,26.28157923]
[1744302148053,3.2078,1480.9,1480.2,3.2078]
[1744302148264,3.2078,1480.3,1478.6,102.892]
[1744302148556,3.2078,1480.1,1479.3,3.2078]
[1744302148753,3.2078,1479.9,1479.3,3.2078]
[1744302148954,3.2078,1479.5,1479.4,48.89761]
[1744302149147,3.2078,1479.5,1479.1,1.35302]
[1744302149347,6.59022,1479.3,1478.5,3.2078]
[1744302149559,3.2078,1478.7,1478.0,13.2781]
[1744302149755,1.35391,1478.2,1478.1,40.8]
[1744302150057,1.35432,1477.8,1477.5,3.2078]
[1744302150246,3.2078,1477.8,1477.3,3.2078]
[1744302150453,3.2078,1477.4,1476.8,52.24331818]
[1744302150650,3.2078,1477.6,1476.8,55.45111818]
[1744302150850,7.60404713,1478.0,1477.3,3.2078]
[1744302151055,3.2078,1478.1,1477.4,3.38662]
[1744302151355,3.2078,1477.7,1477.4,15.73960858]
[1744302151555,0.01014782,1477.8,1477.7,1.35437]
[1744302151748,0.01014782,1477.8,1477.1,47.01898636]
[1744302151948,4.56263,1477.2,1477.1,44.08084636]
[1744302152153,18.7878,1477.2,1476.2,3.2078]
[1744302152353,18.7878,1477.2,1474.2,61.7762606]
[1744302152354,3.2078,1476.3,1475.3,3.2078]
[1744302152648,3.2078,1476.1,1475.5,77.06864486]